bitfinex/quotes_ETHUSD_20240817
["timestamp","ask_amount","ask_price","bid_price","bid_amount"]
[1723919992806,2.2818,2617.7,2617.2,2.86555]
[1723919993608,2.2818,2617.7,2617.4,2.86543]
[1723919997709,2.2818,2617.7,2617.3,2.86554]
[1723919998473,3.58261581,2617.7,2617.3,2.86554]
[1723920001352,2.2818,2617.7,2617.3,2.86554]
[1723920004054,5.14691,2617.7,2617.3,2.86554]
[1723920004256,2.2818,2617.7,2617.3,5.73096]
[1723920004567,2.2818,2617.7,2617.4,2.86542]
[1723920012548,2.2818,2617.7,2617.2,4.17655]
[1723920012771,6.16131267,2617.7,2617.2,2.86555]
[1723920013759,2.4044,2617.6,2617.2,2.86555]
[1723920013923,2.4044,2617.6,2617.3,2.86554]
[1723920018229,2.4044,2617.6,2617.2,2.86565]
[1723920019848,2.86532,2617.5,2617.1,4.17674]
[1723920020046,2.3968,2617.4,2617.1,4.17674]
[1723920023189,2.3968,2617.4,2617.0,4.17686]
[1723920026070,5.26224,2617.4,2617.0,4.17686]
[1723920026273,0.526217,2617.3,2617.0,1.311]
[1723920026482,2.3968,2617.2,2617.0,1.311]
[1723920032081,2.3968,2617.1,2616.8,2.86609]
[1723920032335,2.63648,2617.1,2616.8,2.86609]
[1723920032487,2.63648,2617.1,2616.7,4.17713]
[1723920032955,2.3968,2617.1,2616.7,4.17713]
[1723920033677,2.3968,2617.1,2616.7,7.04328]
[1723920033869,2.3968,2617.1,2616.7,4.17713]
[1723920034179,2.3968,2617.1,2616.7,7.04328]
[1723920034381,2.3968,2617.1,2616.7,4.17713]
[1723920034580,2.3968,2617.1,2616.7,7.04327]
[1723920034785,2.3968,2617.1,2616.7,4.17713]
[1723920035852,2.3968,2617.1,2616.5,2.86634]
[1723920035853,2.923046,2617.1,2616.5,2.86634]
[1723920036048,7.26119585,2617.1,2616.5,2.86634]
[1723920036290,2.3968,2616.8,2616.5,2.86634]
[1723920036454,2.3968,2616.8,2616.3,2.86654]
[1723920037107,2.3968,2616.8,2616.4,2.86646]
[1723920037650,2.3968,2616.8,2616.4,4.17746]
[1723920038077,2.92308,2616.8,2616.4,4.17746]
[1723920038706,2.92308,2616.8,2616.3,2.86654]
[1723920038912,2.86629,2616.7,2616.1,2.86679]
[1723920039054,2.3968,2616.6,2616.1,2.86678]
[1723920039250,2.3968,2616.5,2616.1,2.86678]
[1723920039489,2.3968,2616.5,2616.1,5.73356]
[1723920039691,2.3968,2616.5,2616.0,1.311]
[1723920039692,2.2961,2616.0,2615.5,2.86741]
[1723920039909,2.2961,2616.0,2615.4,5.26634]
[1723920040110,2.86708,2615.9,2615.5,0.33285418]
[1723920041165,2.2961,2616.0,2615.5,3.20031418]
[1723920041365,2.2961,2616.0,2615.5,5.55271418]
[1723920041715,2.2961,2616.0,2615.5,8.42017418]
[1723920041878,2.2961,2616.0,2615.6,4.1784]
[1723920045626,2.2961,2616.0,2615.7,2.86728]
[1723920047853,5.16281,2616.3,2615.7,2.86728]
[1723920048004,2.2961,2616.3,2615.7,2.86728]
[1723920048205,2.2961,2616.3,2615.9,2.86702]
[1723920048514,2.86648,2616.5,2615.9,2.86702]
[1723920048515,2.2961,2616.5,2615.9,2.86702]
[1723920048712,5.16257,2616.5,2616.0,2.86693]
[1723920048908,3.0,2616.4,2616.0,2.86693]
[1723920049912,3.0,2616.4,2615.9,2.86702]
[1723920050299,2.2961,2616.3,2615.9,2.86702]
[1723920052540,5.16279,2616.3,2615.7,4.17822]
[1723920053507,5.16279,2616.3,2615.8,2.86718]
[1723920054750,2.86676,2616.2,2615.7,4.17822]
[1723920055101,2.2961,2616.1,2615.7,4.17822]
[1723920055554,5.16302,2616.1,2615.5,2.86744]
[1723920056360,2.86698,2616.0,2615.5,2.86744]
[1723920056650,2.86698,2616.0,2615.5,5.7349]
[1723920056954,2.86698,2616.0,2615.5,2.86744]
[1723920057605,3.30321733,2616.1,2615.6,2.8674]
[1723920057802,2.2961,2616.1,2615.7,4.17829]
[1723920058005,2.2961,2616.1,2615.7,7.04553]
[1723920058465,2.2961,2616.1,2615.7,4.17824]
[1723920060587,5.16297,2616.1,2615.7,4.17824]
[1723920060769,5.16297,2616.1,2615.7,2.86724]
[1723920061177,2.4628,2616.0,2615.6,2.8674]
[1723920063356,5.32982,2616.0,2615.5,5.7349]
[1723920063569,1.311,2615.9,2615.3,0.1276348]
[1723920063704,0.98117023,2616.0,2615.3,0.1276348]
[1723920063705,2.86752,2615.5,2615.3,0.1276348]
[1723920064060,2.4628,2615.4,2615.3,0.1276348]
[1723920065234,8.731092,2615.4,2615.3,0.1276348]
[1723920065452,14.598722,2615.4,2615.3,0.1276348]
[1723920065663,15.298722,2615.4,2615.3,0.1276348]
[1723920066003,17.35669082,2615.4,2615.3,0.1276348]
[1723920067483,2.4628,2614.6,2614.1,2.86899]
[1723920067610,5.33131,2614.6,2614.0,5.74747]
[1723920067813,2.4628,2614.6,2614.1,2.86902]
[1723920068206,2.4628,2614.6,2614.0,3.584217]
[1723920068207,2.4628,2614.6,2614.0,0.0093]
[1723920068404,2.4628,2614.6,2614.0,4.18939]
[1723920068858,5.33136,2614.6,2614.0,7.05849]
[1723920069038,5.33136,2614.6,2614.0,7.0585]
[1723920069441,5.33136,2614.6,2614.0,7.05849]
[1723920069608,2.86863,2614.5,2614.0,4.18939]
[1723920069963,2.86863,2614.5,2614.0,0.0093]
[1723920070124,2.86878,2614.4,2614.0,0.0093]
[1723920070327,2.86883,2614.3,2614.0,0.0093]
[1723920070912,2.86866,2614.5,2614.0,0.0093]
[1723920071108,6.270516,2614.5,2614.0,0.0093]
[1723920071311,0.533146,2614.5,2614.0,0.0093]
[1723920071624,0.533146,2614.5,2614.1,2.86903]
[1723920072973,0.533146,2614.5,2614.0,0.0093]
[1723920073207,5.181497,2614.5,2614.0,0.0093]
[1723920073327,1.0512827,2614.4,2614.0,0.0093]
[1723920073641,3.9200627,2614.4,2614.0,0.0093]
[1723920076284,1.0512827,2614.4,2614.0,0.0093]
[1723920076563,1.0512827,2614.4,2614.0,2.87846]
[1723920076763,3.9200327,2614.4,2614.0,0.0093]
[1723920076967,0.28309537,2614.3,2614.0,0.0093]
[1723920077440,1.779671,2614.5,2614.4,2.86872]
[1723920077631,7.39,2614.7,2614.4,2.86866]
[1723920078044,7.39,2614.7,2614.4,5.73731]
[1723920078268,7.39,2614.7,2614.4,2.86865]
[1723920078644,7.39,2614.7,2614.5,2.86854]
[1723920079047,2.46687691,2615.3,2614.9,2.86811]
[1723920079251,2.4628,2615.4,2615.0,2.86801]
[1723920079462,0.533042,2615.3,2615.0,2.86801]
[1723920079968,0.533042,2615.3,2614.9,5.73623]
[1723920080172,0.533042,2615.3,2614.9,2.86811]
[1723920080333,0.533042,2615.3,2614.9,5.73622]
[1723920080533,0.533042,2615.3,2614.9,5.73623]
[1723920080770,3.533042,2615.3,2614.9,5.73623]
[1723920081380,3.533042,2615.3,2615.0,2.86806]
[1723920081583,3.533042,2615.3,2614.9,2.86811]
[1723920081784,3.533042,2615.3,2614.9,5.7362]
[1723920082097,0.8863472,2615.2,2614.7,5.73662]
[1723920082300,0.8863472,2615.2,2614.8,2.86827]
[1723920082602,0.72871292,2615.1,2614.8,2.86827]
[1723920083783,2.3252,2614.9,2614.1,2.3413]
[1723920083988,2.3252,2614.9,2614.4,2.86864]
[1723920084192,0.519332,2614.8,2614.4,2.86864]
[1723920084792,5.19337,2614.9,2614.4,2.86864]
[1723920085639,2.3252,2614.9,2614.5,2.8686]
[1723920086143,2.3252,2614.9,2614.4,2.86864]
[1723920086386,5.19339,2614.9,2614.4,5.7373]
[1723920086591,0.23252,2614.8,2614.4,2.86864]
[1723920087242,1.57626634,2615.2,2614.7,2.8683]
[1723920087679,1.57626634,2615.2,2614.8,2.86828]
[1723920088306,1.57626634,2615.2,2614.9,2.86817]
[1723920088860,1.57626634,2615.2,2614.8,2.86822]
[1723920089092,0.97692763,2615.1,2614.8,2.86822]
[1723920090197,0.97692763,2615.1,2614.9,2.86817]
[1723920090496,0.97692763,2615.1,2614.8,2.86828]
[1723920090671,0.2553194,2615.0,2614.8,2.86828]
[1723920091466,0.2553194,2615.0,2614.6,2.86842]
[1723920091467,0.2553194,2615.0,2614.6,2.8685]
[1723920091795,2.3252,2614.9,2614.6,2.8685]
[1723920091974,2.3252,2614.9,2614.6,2.86844]
[1723920092170,2.9677457,2614.9,2614.6,2.86844]
[1723920092587,2.9677457,2614.9,2614.6,5.73689]
[1723920092833,2.9677457,2614.9,2614.7,2.86838]
[1723920093044,2.9677457,2614.9,2614.6,2.86844]
[1723920094212,2.9677457,2614.9,2614.4,2.86863]
[1723920094417,0.32230651,2614.8,2614.4,5.73728]
[1723920094656,0.32230651,2614.8,2614.5,2.86861]
[1723920096023,0.32230651,2614.8,2614.4,5.7373]
[1723920096349,0.32230651,2614.8,2614.6,2.8685]
[1723920097876,0.32230651,2614.8,2614.4,2.86863]
[1723920097877,0.32230651,2614.8,2614.5,2.86861]
[1723920099052,0.32230651,2614.8,2614.4,2.86863]
[1723920099337,0.32230651,2614.8,2614.4,5.73728]
[1723920099776,2.86841,2614.7,2614.2,2.86886]
[1723920099949,2.64117165,2614.6,2614.2,2.86886]
[1723920100740,5.50971165,2614.6,2614.0,2.87836]
[1723920100967,2.86869,2614.5,2614.0,2.87836]
[1723920101164,0.83784017,2614.4,2614.1,2.86904]
[1723920102703,2.3221,2614.6,2614.2,2.86885]
[1723920102985,2.86836,2614.8,2614.3,2.86877]
[1723920102986,5.19046,2614.8,2614.3,2.86877]
[1723920103137,1.025836,2614.7,2614.3,2.86877]
[1723920103542,1.025836,2614.7,2614.4,5.73739]
[1723920103745,1.025836,2614.7,2614.5,2.86861]
[1723920104596,0.3347936,2614.6,2614.5,2.86861]
[1723920104886,1.025836,2614.7,2614.5,2.86861]
[1723920105096,7.39,2614.9,2614.5,2.86861]
[1723920105276,3.0,2614.8,2614.6,2.8685]
[1723920105455,3.0,2614.8,2614.5,2.86861]
[1723920105652,3.0,2614.8,2614.3,5.15736]
[1723920105653,4.27121,2614.8,2614.4,2.86866]
[1723920106064,4.27121,2614.8,2614.3,2.86875]
[1723920106266,2.3221,2614.7,2614.3,2.86875]
[1723920106461,1.233,2614.6,2614.3,2.86875]
[1723920107276,4.27121,2614.8,2614.4,2.86866]
[1723920107476,4.27121,2614.8,2614.5,2.86861]
[1723920107877,7.13955,2614.8,2614.3,2.86875]
[1723920108075,1.398331,2614.7,2614.4,2.86866]
[1723920111788,1.398331,2614.7,2614.2,5.73777]
[1723920111989,0.5669541,2614.6,2614.2,5.73777]
[1723920113221,2.3221,2614.5,2614.2,2.86883]
[1723920116782,2.3221,2614.5,2614.2,5.73772]
[1723920116987,2.3221,2614.5,2614.2,2.86883]
[1723920117818,5.8496061,2614.5,2614.0,5.74747]
[1723920117995,5.8496061,2614.5,2614.0,2.87838]
[1723920120991,2.86884,2614.3,2614.0,0.0093]
[1723920121428,3.45369061,2614.4,2614.0,0.0093]
[1723920121625,2.86884,2614.3,2614.0,0.0093]
[1723920121841,2.4981,2614.2,2614.0,0.0093]
[1723920122769,3.45369061,2614.4,2614.0,2.87844]
[1723920122948,0.6588861,2614.5,2614.0,2.87844]
[1723920123105,0.6588861,2614.5,2614.1,2.2736]
[1723920124007,4.266811,2614.7,2614.1,2.2736]
[1723920124222,6.87694588,2614.8,2614.1,2.2736]
[1723920124223,5.4981,2614.8,2614.1,2.2736]
[1723920124401,2.4981,2614.8,2614.4,2.8687]
[1723920124619,3.773734,2614.8,2614.4,2.8687]
[1723920124954,6.642034,2614.8,2614.4,2.8687]
[1723920125091,3.773734,2614.8,2614.4,2.8687]
[1723920125722,3.773734,2614.8,2614.4,5.7374]
[1723920126030,3.773734,2614.8,2614.4,2.8687]
[1723920126395,7.39,2614.9,2614.4,2.8687]
[1723920126621,7.39,2614.9,2614.4,2.86865]
[1723920126821,7.39,2614.9,2614.5,2.86855]
[1723920127198,10.25818,2614.9,2614.5,2.86855]
[1723920127697,1.025818,2614.8,2614.5,2.86855]
[1723920127915,3.0,2614.9,2614.5,2.86855]
[1723920128341,5.86818,2614.9,2614.5,2.86855]
[1723920128942,5.86818,2614.9,2614.3,2.86881]
[1723920128943,8.73642,2614.9,2614.4,2.86872]
[1723920129136,0.586818,2614.8,2614.4,2.86872]
[1723920129350,3.084918,2614.8,2614.4,2.86872]
[1723920129500,5.953218,2614.8,2614.3,2.86877]
[1723920129822,1.1821358,2614.7,2614.3,2.86877]
[1723920130139,2.3567,2614.5,2614.1,2.86898]
[1723920130295,0.522526,2614.4,2614.1,2.86898]
[1723920130503,2.3567,2614.5,2614.0,0.0093]
[1723920130711,5.22537,2614.5,2614.0,2.87844]
[1723920131635,2.3567,2614.5,2614.1,2.86903]
[1723920132023,8.22488,2614.9,2614.3,2.86875]
[1723920132222,8.22488,2614.9,2614.4,2.86867]
[1723920132539,1.30883124,2614.8,2614.4,2.86867]
[1723920134444,4.17713124,2614.8,2614.3,2.86875]
[1723920136812,2.3567,2614.7,2614.3,2.86875]
[1723920138016,7.04547124,2614.8,2614.3,5.25885]
[1723920138238,1.20414851,2614.7,2614.3,5.25885]
[1723920138742,1.20414851,2614.7,2614.4,2.86872]
[1723920138945,2.8683,2614.8,2614.4,2.86872]
[1723920139803,3.0,2614.9,2614.5,2.86856]
[1723920141605,3.0,2614.9,2614.6,2.86849]
[1723920142009,3.0,2615.0,2614.6,2.86849]
[1723920142201,4.75763101,2615.0,2614.6,2.86849]
[1723920142451,3.0,2615.0,2614.6,2.86849]
[1723920142651,4.86489014,2615.1,2614.6,2.86849]
[1723920143222,1.99693014,2615.1,2614.8,2.86823]
[1723920143544,1.99693014,2615.1,2615.0,2.86806]
[1723920144209,1.99693014,2615.1,2615.0,5.73612]
[1723920147035,5.2492022,2615.6,2615.1,2.86793]
[1723920147036,2.4535,2615.6,2615.1,2.86793]
[1723920147810,5.32091,2615.6,2615.1,2.86793]
[1723920148006,0.532091,2615.5,2615.0,2.868]
[1723920149064,0.532091,2615.5,2615.1,2.86793]
[1723920150151,0.532091,2615.5,2615.2,2.86783]
[1723920150333,2.4535,2615.6,2615.2,2.86783]
[1723920150924,2.4535,2615.6,2615.2,2.86779]
[1723920151108,2.8673,2615.7,2615.2,5.73558]
[1723920151309,2.8673,2615.7,2615.2,2.86779]
[1723920151310,0.573454,2615.7,2615.2,2.86779]
[1723920151510,3.440754,2615.7,2615.2,2.86779]
[1723920151714,2.86741,2615.6,2615.2,2.86779]
[1723920152011,3.7435654,2615.6,2615.1,2.86795]
[1723920152614,5.32115,2615.4,2615.0,2.86799]
[1723920154864,8.18885,2615.4,2614.9,2.4764]
[1723920155204,8.18885,2615.4,2614.4,3.162]
[1723920155205,2.86796,2615.1,2614.4,2.86865]
[1723920155495,2.86796,2615.1,2614.6,2.8685]
[1723920155496,2.4535,2615.0,2614.6,2.8685]
[1723920156001,5.32162,2615.0,2614.4,2.86865]
[1723920156301,5.32162,2615.0,2614.6,2.86848]
[1723920156498,5.853782,2615.0,2614.6,2.86848]
[1723920157488,0.532162,2615.0,2614.6,2.86848]
[1723920157810,2.86796,2615.1,2614.6,2.86848]
[1723920163021,5.32135,2615.2,2614.8,2.86828]
[1723920163225,7.39,2615.3,2615.0,2.86805]
[1723920163523,2.3727,2615.4,2615.0,2.86805]
[1723920163820,2.3727,2615.4,2615.0,2.86801]
[1723920163821,9.18215125,2615.4,2615.0,2.86801]
[1723920164425,6.80945125,2615.4,2615.0,5.73602]
[1723920164639,6.80945125,2615.4,2615.1,2.86795]
[1723920164802,6.80945125,2615.4,2615.0,2.86801]
[1723920165441,9.67709125,2615.4,2614.9,2.397]
[1723920165617,3.19996712,2615.3,2614.8,2.86819]
[1723920165815,3.19996712,2615.3,2614.9,5.2651]
[1723920166195,5.86764,2615.4,2614.9,5.2651]
[1723920166620,5.86764,2615.4,2614.9,2.8681]
[1723920167728,3.0,2615.4,2615.0,2.86806]
[1723920168416,4.5132555,2615.4,2615.0,2.86806]
[1723920168811,7.3808955,2615.4,2615.0,2.86806]
[1723920170296,2.86775,2615.3,2614.9,2.86817]
[1723920170511,2.3727,2615.2,2614.8,2.86828]
[1723920170706,2.3727,2615.2,2614.8,2.86822]
[1723920171530,6.44894495,2615.2,2614.7,2.86839]
[1723920172644,9.31687495,2615.2,2614.7,2.86839]
[1723920172860,6.44894495,2615.2,2614.7,2.86839]
[1723920173151,6.44894495,2615.2,2614.8,2.86827]
[1723920173320,5.2406,2615.2,2614.8,2.86827]
[1723920174347,4.1849,2615.2,2614.6,2.86842]
[1723920174648,4.1849,2615.2,2614.4,2.86865]
[1723920174649,2.86825,2614.9,2614.4,2.86865]
[1723920174816,0.286825,2614.8,2614.4,2.86865]
[1723920175018,2.86825,2614.9,2614.4,2.86865]
[1723920177878,5.24099,2614.8,2614.2,4.18585]
[1723920178172,5.24099,2614.8,2614.3,2.86878]
[1723920178329,2.3727,2614.8,2614.4,2.86872]
[1723920180249,2.3727,2614.8,2614.4,2.86864]
[1723920180772,2.3727,2614.8,2614.5,2.8686]
[1723920182955,2.3727,2614.8,2614.3,5.73756]
[1723920183150,2.3727,2614.8,2614.4,2.8687]
[1723920183354,5.24099,2614.8,2614.3,5.73751]
[1723920183664,6.051892,2614.8,2614.3,2.86874]
[1723920184564,3.183602,2614.8,2614.4,2.86872]
[1723920184775,2.3727,2614.8,2614.4,2.86872]
[1723920188391,2.3727,2614.8,2614.5,2.86859]
[1723920188549,8.21497,2615.0,2614.5,2.86859]
[1723920188747,9.659281,2615.0,2614.5,2.86859]
[1723920190260,2.86818,2614.9,2614.5,2.86859]
[1723920190579,5.3469,2615.0,2614.5,2.86852]
[1723920192272,6.907394,2615.0,2614.5,2.86852]
[1723920192469,9.775514,2615.0,2614.5,2.86852]
[1723920196579,5.2152,2614.8,2614.3,2.86873]
[1723920196780,2.86844,2614.7,2614.2,4.18592]
[1723920196979,2.86844,2614.7,2614.2,2.86892]
[1723920197179,2.3469,2614.6,2614.2,2.86892]
[1723920197924,5.21541,2614.6,2614.1,5.73797]
[1723920198198,2.86864,2614.5,2614.1,2.86898]
[1723920201159,6.28191024,2614.6,2614.1,5.73797]
[1723920201487,5.2154,2614.6,2614.1,5.73797]
[1723920202621,2.3464,2614.8,2614.3,2.86882]
[1723920202765,2.3464,2614.8,2614.4,2.86867]
[1723920203872,10.25818,2614.9,2614.4,2.86867]
[1723920204866,7.39,2614.9,2614.5,2.86861]
[1723920206982,2.3464,2614.8,2614.3,2.86877]
[1723920207316,5.21485,2614.7,2614.2,2.86889]
[1723920207467,2.3464,2614.7,2614.3,2.86883]
[1723920208367,5.21479,2614.7,2614.3,2.86883]
[1723920213887,5.91098809,2614.7,2614.1,2.86898]
[1723920214207,5.91098809,2614.7,2614.1,5.73797]
[1723920214390,5.91098809,2614.7,2614.2,2.86891]
[1723920214707,5.21479,2614.7,2614.2,2.86891]
[1723920215277,2.3464,2614.7,2614.3,2.86882]
[1723920217308,2.3464,2614.7,2614.4,2.86872]
[1723920217512,2.3464,2614.7,2614.3,2.86876]
[1723920218415,2.3464,2614.7,2614.3,5.73754]
[1723920218809,2.3464,2614.7,2614.3,2.86876]
[1723920219137,12.60458,2614.9,2614.4,2.86872]
[1723920219812,5.23771,2614.8,2614.3,2.86876]
[1723920220011,0.49991377,2614.7,2614.3,2.86876]
[1723920220314,5.23771,2614.8,2614.3,2.86876]
[1723920220731,5.23771,2614.8,2614.3,5.73753]
[1723920221644,2.3694,2614.8,2614.4,2.86871]
[1723920222204,5.23769,2614.8,2614.3,5.73754]
[1723920222410,2.3694,2614.8,2614.4,2.8687]
[1723920229095,2.3694,2614.8,2614.5,2.8686]
[1723920229299,2.3694,2614.8,2614.3,5.73749]
[1723920230802,2.3694,2614.8,2614.4,2.86872]
[1723920238272,5.23768,2614.8,2614.4,2.86872]
[1723920242265,5.23768,2614.8,2614.3,2.86882]
[1723920242890,7.23634599,2614.8,2614.3,2.86882]
[1723920243663,5.23768,2614.8,2614.3,2.86882]
[1723920244063,7.23634599,2614.8,2614.3,2.86882]
[1723920244562,2.86841,2614.7,2614.3,2.86882]
[1723920245163,2.3694,2614.8,2614.3,2.86877]
[1723920245364,5.2377,2614.8,2614.3,3.574248]
[1723920245566,5.2377,2614.8,2614.3,2.86877]
[1723920246686,5.2377,2614.8,2614.3,5.73753]
[1723920247508,5.2377,2614.8,2614.3,2.86876]
[1723920249277,7.23636599,2614.8,2614.3,2.86876]
[1723920249478,10.10471599,2614.8,2614.3,2.86876]
[1723920250178,7.23636599,2614.8,2614.3,2.86876]
[1723920250379,2.86856,2614.6,2614.1,2.86897]
[1723920251494,2.86856,2614.6,2614.1,5.73796]
[1723920254995,2.86856,2614.6,2614.0,2.87846]
[1723920254996,2.3523,2614.4,2614.0,2.87846]
[1723920255294,2.3523,2614.4,2614.1,3.32734071]
[1723920255495,2.3523,2614.4,2614.0,3.68201406]
[1723920255723,2.3523,2614.4,2614.1,1.33089687]
[1723920255918,2.3523,2614.4,2614.0,2.87846]
[1723920256714,2.3523,2614.4,2614.1,1.33093564]
[1723920256918,5.22108,2614.4,2614.0,0.0093]
[1723920257933,2.3523,2614.4,2614.0,0.0093]
[1723920258427,2.3523,2614.4,2614.0,2.87845]
[1723920259297,5.22106,2614.4,2614.0,0.0093]
[1723920259500,5.22135,2614.1,2614.0,0.0093]
[1723920260024,2.3523,2614.1,2614.0,0.0093]
[1723920261214,5.22135,2614.1,2614.0,0.0093]
[1723920262519,2.3523,2614.1,2614.0,0.0093]
[1723920263322,5.22135,2614.1,2614.0,0.0093]
[1723920263731,7.576673,2614.4,2614.0,0.0093]
[1723920263892,2.4335,2614.3,2614.0,0.0093]
[1723920265300,2.4335,2614.4,2614.0,2.87846]
[1723920267203,6.119299,2614.4,2614.0,2.87846]
[1723920267403,6.119299,2614.4,2614.0,0.0093]
[1723920269419,5.30223,2614.4,2614.0,0.0093]
[1723920269617,2.4335,2614.4,2614.0,2.87844]
[1723920270432,2.4335,2614.4,2614.1,2.86905]
[1723920270610,5.86864,2614.5,2614.1,2.86905]
[1723920271132,3.0,2614.5,2614.1,2.86905]
[1723920273122,11.41015387,2614.8,2614.4,2.86862]
[1723920273328,11.41015387,2614.8,2614.2,2.86887]
[1723920273329,2.8685,2614.7,2614.2,2.86887]
[1723920273504,1.14101539,2614.7,2614.2,2.86887]
[1723920275018,2.8685,2614.6,2614.2,2.86887]
[1723920276543,1.14101539,2614.7,2614.2,2.86887]
[1723920276918,4.00947539,2614.7,2614.2,2.86887]
[1723920277636,2.4335,2614.5,2614.0,2.87838]
[1723920277805,5.30214,2614.5,2614.0,2.87838]
[1723920279735,5.30214,2614.5,2614.0,5.74749]
[1723920280730,5.30214,2614.5,2614.0,2.87838]
[1723920281032,5.30214,2614.5,2614.0,5.74748]
[1723920281203,5.30214,2614.5,2614.0,2.87838]
[1723920281204,6.2349106,2614.5,2614.0,2.87838]
[1723920281948,6.2349106,2614.5,2614.0,5.74749]
[1723920283822,3.3662706,2614.5,2614.1,2.86905]
[1723920284016,2.4335,2614.5,2614.1,2.86905]
[1723920284843,15.5960934,2614.8,2614.2,2.86893]
[1723920284844,2.2899,2614.7,2614.2,2.86893]
[1723920285050,9.41386908,2614.8,2614.2,3.7869]
[1723920285341,9.41386908,2614.8,2614.3,2.86874]
[1723920285543,2.86882,2614.4,2614.0,0.0093]
[1723920285744,2.2899,2614.3,2614.0,0.0093]
[1723920286044,0.515868,2614.2,2614.0,0.0093]
[1723920286415,5.15895,2614.1,2614.0,0.0093]
[1723920287832,3.384818,2614.2,2614.0,0.0093]
[1723920288037,0.515868,2614.2,2614.0,0.0093]
[1723920290716,2.86905,2614.1,2614.0,0.0093]
[1723920291059,17.61005555,2614.1,2614.0,0.0093]
[1723920291219,13.42400555,2614.1,2614.0,0.0093]
[1723920291424,13.02312259,2614.1,2614.0,0.0093]
[1723920291734,11.028,2614.1,2614.0,0.0093]
[1723920291937,12.72729756,2614.1,2614.0,0.0093]
[1723920292143,14.04429756,2614.1,2614.0,0.0093]
[1723920292347,14.72188493,2614.1,2614.0,0.0093]
[1723920294457,12.72729756,2614.1,2614.0,0.0093]
[1723920294623,14.7224024,2614.1,2614.0,0.0093]
[1723920295560,12.72729756,2614.1,2614.0,0.0093]
[1723920296227,4.56834756,2614.1,2614.0,0.0093]
[1723920297378,2.86872,2614.4,2614.0,0.0093]
[1723920297670,2.86884,2614.3,2614.0,0.0093]
[1723920300137,4.18573,2614.4,2614.0,0.0093]
[1723920301673,1.317,2614.4,2614.0,2.87845]
[1723920301884,1.317,2614.4,2614.0,0.831065]
[1723920302064,4.18578,2614.4,2614.0,0.831065]
[1723920302233,2.86891,2614.3,2614.0,0.0093]
[1723920303047,2.86902,2614.2,2614.0,0.0093]
[1723920303671,2.86891,2614.3,2614.0,0.0093]
[1723920304261,3.819888,2614.3,2614.0,0.0093]
[1723920304471,6.688788,2614.3,2614.0,0.0093]
[1723920304652,3.819878,2614.3,2614.0,0.0093]
[1723920305380,4.186,2614.2,2614.0,0.0093]
[1723920305580,5.32425,2614.1,2614.0,0.0093]
[1723920305872,9.2394228,2614.1,2614.0,0.0093]
[1723920306076,12.2394228,2614.1,2614.0,0.0093]
[1723920308606,3.0,2614.1,2614.0,0.0093]
[1723920309107,6.7722,2614.4,2614.0,0.0093]
[1723920309322,5.86873,2614.4,2614.0,0.0093]
[1723920309526,3.742631,2614.3,2614.0,0.0093]
[1723920309666,2.86889,2614.3,2614.0,0.0093]
[1723920309999,4.18589,2614.3,2614.0,0.0093]
[1723920310497,2.86901,2614.2,2614.0,0.0093]
[1723920310798,2.869,2614.2,2614.0,0.0093]
[1723920311499,2.86905,2614.1,2614.0,0.0093]
[1723920311668,3.82007,2614.1,2614.0,0.0093]
[1723920312362,8.00612,2614.1,2614.0,0.0093]
[1723920314513,17.03037,2614.1,2614.0,0.0093]
[1723920314880,17.58037,2614.1,2614.0,0.0093]
[1723920315355,20.44942,2614.1,2614.0,0.0093]
[1723920317342,22.83822888,2614.1,2614.0,0.0093]
[1723920318021,40.39942,2614.1,2614.0,0.0093]
[1723920318324,42.78819137,2614.1,2614.0,0.0093]
[1723920319991,40.39942,2614.1,2614.0,0.0093]
[1723920320214,42.78743902,2614.1,2614.0,0.0093]
[1723920320415,40.39942,2614.1,2614.0,0.0093]
[1723920320602,42.78716791,2614.1,2614.0,0.0093]
[1723920321121,40.39942,2614.1,2614.0,0.0093]
[1723920321339,42.78716791,2614.1,2614.0,0.0093]
[1723920322245,40.39942,2614.1,2614.0,0.0093]
[1723920322665,44.79658508,2614.1,2614.0,0.0093]
[1723920322961,42.40916162,2614.1,2614.0,0.0093]
[1723920323266,44.79658508,2614.1,2614.0,0.0093]
[1723920324020,42.40916162,2614.1,2614.0,0.0093]
[1723920324459,44.79658508,2614.1,2614.0,0.0093]
[1723920325218,42.40916162,2614.1,2614.0,0.0093]
[1723920325423,44.79658508,2614.1,2614.0,0.0093]
[1723920325654,42.40916162,2614.1,2614.0,0.0093]
[1723920327018,44.79658508,2614.1,2614.0,0.0093]
[1723920327531,42.40916162,2614.1,2614.0,0.0093]
[1723920328149,44.79658508,2614.1,2614.0,0.0093]
[1723920329421,42.78684346,2614.1,2614.0,0.0093]
[1723920331056,26.63912,2614.1,2614.0,0.0093]
[1723920331224,25.6881,2614.1,2614.0,0.0093]
[1723920332354,27.0051,2614.1,2614.0,0.0093]
[1723920332569,30.0051,2614.1,2614.0,0.0093]
[1723920333558,32.4797,2614.1,2614.0,0.0093]
[1723920333759,28.6881,2614.1,2614.0,2.3712]
[1723920333970,30.0051,2614.1,2614.0,2.3712]
[1723920334624,30.0051,2614.1,2614.0,0.0093]
[1723920334958,33.47027087,2614.1,2614.0,0.0093]
[1723920336246,30.0051,2614.1,2614.0,0.0093]
[1723920336954,5.86905,2614.1,2614.0,0.0093]
[1723920337756,7.0551,2614.1,2614.0,0.0093]
[1723920338375,10.0551,2614.1,2614.0,0.0093]
[1723920340746,8.7381,2614.1,2614.0,0.0093]